{"text_format":"1","workbook":"xlsx","n_sheets":5,"sheets":["Orientacoes","I Quadro Pessoal","II Contratos e Aquisicoes","III Plano de Trabalho","Plan2"],"not_rendered":{"charts":0,"images":2,"macros":1,"external_links":0,"defined_names":3,"comments":1,"pivot_tables":0},"unopened":[],"bounds":{"document_bytes":16777216,"sheet_cells":100000,"rows_first":2000,"rows_last":500,"rows_between":2000,"halvings":0,"cell_chars":16384,"cell_head_chars":4096},"cells_cut":0,"cells_raw":0,"read":"whole","date_system":"1900"}

{"sheet":"Orientacoes","index":0,"n_rows":14,"n_cols":1,"rows_kept":14,"cut":false,"hidden":false,"merged":[[11,0,11,10],[5,0,5,10],[7,0,7,10],[9,0,9,10],[13,0,13,10]]}
[]
[]
[]
[]
[]
["Orientações"]
[]
["Caro pesquisador: visando facilitar o preenchimento do Plano de Trabalho, foi criada esta planilha que realiza diversos cálculos de forma automatizada a medida que seu preenchimento vai ocorrendo. Em linhas gerais, basta que os campos em verde sejam preenchidos. "]
[]
["Assim, recomenda-se que inicie o preenchimento pela aba \"I Quadro de Pessoal\", seguido pela aba \"II Contratos e Aquisicoes\" e finalize na aba \"III Plano de Trabalho\". "]
[]
["Nesta planilha, poderá inserir e excluir linhas conforme a necessidade de adição ou retirada de informações."]
[]
["Uma vez preenchidas todas as informações, bastará clicar no botão \"Gerar PDF\" (no canto superior direito da última aba) para que tenha o conjunto de informações passível de assinatura digital ou impressão. "]

{"sheet":"I Quadro Pessoal","index":1,"n_rows":44,"n_cols":11,"rows_kept":44,"cut":false,"hidden":false,"merged":[[47,2,47,3],[43,2,43,3],[44,2,44,3],[45,2,45,3],[46,2,46,3],[35,0,35,1],[36,0,36,1],[37,0,37,1],[38,0,38,1],[39,0,39,1],[9,3,9,4],[10,3,10,4],[25,0,25,2],[26,0,26,2],[5,0,5,10],[6,0,6,10],[19,4,19,5],[20,0,20,1],[20,2,20,3],[20,4,20,5],[27,0,27,2],[28,0,28,2],[29,0,29,2],[11,3,11,4],[12,3,12,4],[13,3,13,4],[17,0,17,1],[18,0,18,1],[17,4,17,5],[18,2,18,3],[18,4,18,5],[21,0,21,1],[21,2,21,3],[21,4,21,5],[19,0,19,1],[19,2,19,3]]}
[]
[]
[]
[]
[]
["PLANO DE TRABALHO PARA GESTÃO ADMINISTRATIVA: Quadro de Pessoal"]
["Orientações de preenchimento: clique aqui"]
[]
["Participantes (da UFG ou de outras IFES) com recebimentos de bolsa (Lei nº 8.958/1994 e 10.973/2004) "]
["Instituição de vínculo","Vínculo","Modalidade da Bolsa (*)","Nome",null,"Matrícula","CH mensal","Período inicial","Período final","Valor Mensal","Valor Total"]
[null,"Professor","Pesq. Inov.-Prof. ou Pesq. Vis.",null,null,null,null,"2024-01-01","2024-12-31",100,{"$f":"(ROUND((I11-H11)/30,0))*(J11)","v":1200}]
[]
[]
[]
[null,null,null,null,null,null,null,null,"Total",{"$f":"SUM(J11:J14)","v":100},{"$f":"SUM(K11:K14)","v":1200}]
[]
["Outros Participantes (Pesquisador Externo/Convidado) forma de Bolsa"]
["Modalidade da Bolsa",null,"Nome",null,"CPF",null,"CH mensal","Período inicial","Período final","Valor Mensal","Valor Total"]
[null,null,null,null,null,null,null,"2024-07-01","2024-12-31",100,{"$f":"(ROUND((I19-H19)/30,0))*(J19)","v":600}]
[null,null,null,null,null,null,null,null,null,null,{"$f":"(ROUND((I20-H20)/30,0))*(J20)","v":0}]
[null,null,null,null,null,null,null,null,null,null,{"$f":"(ROUND((I21-H21)/30,0))*(J21)","v":0}]
[null,null,null,null,null,null,null,null,null,null,{"$f":"(ROUND((I22-H22)/30,0))*(J22)","v":0}]
[null,null,null,null,null,null,null,null,"Total",{"$f":"SUM(J19:J22)","v":100},{"$f":"SUM(K19:K22)","v":600}]
[]
["Participantes Regime de CLT "]
["Nome ",null,null,"Cargo","Carga Hor. semanal","Período inicial","Período final","Salário base mensal","Encargos - mensal (*)","Benefícios - mensal (**)","Valor Total "]
[null,null,null,null,null,null,null,null,{"$f":"H27*0.8","v":0},null,{"$f":"(ROUND((G27-F27)/30,0))*(J27+I27+H27)","v":0}]
[null,null,null,null,null,null,null,null,{"$f":"H28*0.8","v":0},null,{"$f":"(ROUND((G28-F28)/30,0))*(J28+I28+H28)","v":0}]
[null,null,null,null,null,null,null,null,{"$f":"H29*0.8","v":0},null,{"$f":"(ROUND((G29-F29)/30,0))*(J29+I29+H29)","v":0}]
[null,null,null,null,null,null,null,null,{"$f":"H30*0.8","v":0},null,{"$f":"(ROUND((G30-F30)/30,0))*(J30+I30+H30)","v":0}]
[null,null,null,null,null,null,"Total",{"$f":"SUM(H27:H30)","v":0},{"$f":"SUM(I27:I30)","v":0},0,0]
["(*) Valor estimado dos encargos: 80% do salário-base (INSS, PIS, FGTS, reserva rescisória proporcional entre outros benefícios obrigatórios)."]
["(**) Benefícios não obrigatórios: indicar se houver, bem como outras gratificações de função."]
[]
["Outros Participantes – Pessoa Jurídica / MEI"]
["Nome",null,"CNPJ","Cargo","Carga Hor. semanal","Período inicial","Período final","Salário base mensal","Encargos - mensal (*)","Benefícios - mensal (**)","Valor Total "]
[null,null,null,null,null,null,null,null,{"$f":"H37*0.8","v":0},null,{"$f":"(ROUND((G37-F37)/30,0))*(J37+I37+H37)","v":0}]
[null,null,null,null,null,null,null,null,{"$f":"H38*0.8","v":0},null,{"$f":"(ROUND((G38-F38)/30,0))*(J38+I38+H38)","v":0}]
[null,null,null,null,null,null,null,null,{"$f":"H39*0.8","v":0},null,{"$f":"(ROUND((G39-F39)/30,0))*(J39+I39+H39)","v":0}]
[null,null,null,null,null,null,null,null,{"$f":"H40*0.8","v":0},null,{"$f":"(ROUND((G40-F40)/30,0))*(J40+I40+H40)","v":0}]
[null,null,null,null,null,null,"Total",{"$f":"SUM(H37:H40)","v":0},{"$f":"SUM(I37:I40)","v":0},0,0]
[]
["Participantes (da UFG ou de outras IES) de forma voluntária (Lei nº 8.958/94 e 10.973/2004)"]
["Instituição de vínculo","Vínculo","Nome",null,"Matrícula","CH mensal","Período inicial","Período final","Coluna \"A ser preenchido pela PROAD\"?"]

{"sheet":"II Contratos e Aquisicoes","index":2,"n_rows":61,"n_cols":4,"rows_kept":61,"cut":false,"hidden":false,"merged":[[5,0,5,3],[6,0,6,3],[22,0,22,2],[9,0,9,2],[10,0,10,2],[11,0,11,2],[13,0,13,2],[12,0,12,2],[14,0,14,2],[15,0,15,2],[8,0,8,2],[41,0,41,2],[32,0,32,2],[31,0,31,2],[30,0,30,2],[35,0,35,2],[34,0,34,2],[33,0,33,2],[40,0,40,2],[39,0,39,2],[38,0,38,2],[37,0,37,2],[46,0,46,2],[45,0,45,2],[44,0,44,2],[43,0,43,2],[42,0,42,2],[29,0,29,2],[16,0,16,2],[17,0,17,2],[18,0,18,2],[19,0,19,2],[21,0,21,2],[23,0,23,2],[24,0,24,2],[25,0,25,2],[26,0,26,2],[27,0,27,2]]}
[]
[]
[]
[]
[]
["PLANO DE TRABALHO PARA GESTÃO ADMINISTRATIVA: Quadro Contratos e Aquisições"]
["Orientações de preenchimento: clique aqui"]
[]
["b – Serviços de Terceiros P. Jurídica                                                                          ",null,null,{"$f":"SUM(D10:D20)","v":0}]
["Hospedagem e Alimentação "]
["Manutenção de máquinas e equipamentos "]
["Assinatura de Periódicos/Anuidades"]
["Reprodução de documentos"]
["Confecção de cartaz para divulgação"]
["Despesas Acessórias de Importação"]
["Adequação do espaço "]
["Despesas Bancárias "]
["Outros serviços  "]
["Outros serviços  "]
["Outros serviços  "]
[]
["c – Passagens e Despesas com Locomoção ",null,null,{"$f":"SUM(D23:D28)","v":0}]
["Passagem aérea ida e volta (Origem: X , Destino: Y)"]
["Passagem aérea ida e volta (Origem: X , Destino: Y)"]
["Passagem aérea somente ida (Origem: X , Destino: Y)"]
["Passagem terrestre ida e volta (Origem: X , Destino: Y)"]
["Passagem terrestre somente ida (Origem: X , Destino: Y)"]
["Outras passagens (Origem: X, Destino"]
[]
["d – Diárias",null,null,{"$f":"SUM(D31:D36)","v":0}]
["Cidade X (Y dias) "]
["Cidade X (Y dias) "]
["Cidade X (Y dias) "]
["Cidade X (Y dias) "]
["Cidade X (Y dias) "]
["Outras diárias (Y dias) "]
[]
["e – Material de Consumo           ",null,null,{"$f":"SUM(D39:D46)","v":0}]
["Material de Expediente"]
["Material de Laboratório"]
["Material de manutenção de máquinas, equipamentos e veículos"]
["Material de Limpeza"]
["Combustíveis e lubrificantes"]
["Material clínico e hospitalar"]
["Material de laboratório clínico"]
["Outros materiais"]
["Outros materiais"]
[]
["f – Equipamentos, bens móveis, obras e reformas e justificativa da aquisição"]
["Descrição (Equipamentos/Móveis/Obras/Reformas)                   com respectiva justificativa","Quant.","Data Prev.  Aquisição",{"$f":"SUM(D51:D60)","v":0}]
["Equipamento / Justificativa"]
["Equipamento / Justificativa"]
["Equipamento / Justificativa"]
["Equipamento / Justificativa"]
["Equipamento / Justificativa"]
["Equipamento / Justificativa"]
["Equipamento / Justificativa"]
["Móvel / Justificativa"]
["Obra / Justificativa"]
["Reforma / Justificativa"]
["Obs.: obras e reformas devem ser avaliadas e acompanhadas pelo SEINFRA/UFG"]

{"sheet":"III Plano de Trabalho","index":3,"n_rows":140,"n_cols":10,"rows_kept":140,"cut":false,"hidden":false,"merged":[[117,3,117,7],[118,3,118,7],[135,0,135,1],[135,2,135,3],[134,2,134,3],[134,0,134,1],[103,3,103,7],[122,3,122,7],[123,3,123,7],[112,3,112,7],[113,3,113,7],[131,0,131,9],[107,3,107,7],[108,3,108,7],[38,0,38,9],[39,0,39,9],[42,3,42,5],[42,1,42,2],[20,7,20,9],[21,0,21,6],[21,7,21,9],[23,0,23,9],[27,0,27,9],[28,0,28,9],[32,0,32,9],[33,0,33,9],[35,0,35,5],[35,6,35,7],[20,0,20,6],[5,0,5,9],[6,0,6,9],[8,0,8,9],[9,0,9,9],[47,1,47,2],[47,3,47,5],[47,6,47,7],[43,1,43,2],[43,3,43,5],[43,6,43,7],[44,1,44,2],[44,3,44,5],[44,6,44,7],[42,6,42,7],[36,0,36,5],[36,6,36,7],[11,0,11,9],[17,0,17,6],[17,7,17,9],[18,0,18,6],[18,7,18,9],[15,0,15,9],[35,8,35,9],[36,8,36,9],[45,1,45,2],[45,3,45,5],[45,6,45,7],[46,1,46,2],[46,3,46,5],[46,6,46,7],[69,8,69,9],[68,1,68,7],[48,1,48,2],[48,3,48,5],[58,0,58,9],[60,0,60,9],[66,8,66,9],[50,0,50,9],[51,0,51,9],[55,0,55,2],[55,3,55,9],[66,0,66,7],[65,0,65,7],[65,8,65,9],[57,0,57,9],[69,2,69,7],[67,8,67,9],[67,0,67,7],[68,8,68,9],[71,8,71,9],[72,8,72,9],[70,2,70,7],[70,8,70,9],[48,6,48,7],[75,1,75,7],[76,1,76,7],[74,8,74,9],[75,8,75,9],[76,8,76,9],[73,8,73,9],[74,1,74,7],[73,1,73,7],[71,2,71,7],[72,2,72,7],[63,0,63,3],[63,4,63,6],[63,7,63,9],[61,0,61,3],[61,4,61,6],[61,7,61,9],[62,0,62,3],[62,4,62,6],[87,1,87,6],[87,8,87,9],[82,1,82,7],[82,8,82,9],[77,1,77,7],[77,8,77,9],[81,2,81,7],[81,8,81,9],[79,2,79,7],[78,1,78,7],[80,2,80,7],[78,8,78,9],[79,8,79,9],[80,8,80,9],[62,7,62,9],[97,1,97,4],[97,5,97,9],[98,1,98,4],[98,5,98,9],[99,1,99,4],[99,5,99,9],[95,5,95,9],[95,1,95,4],[94,0,94,9],[96,1,96,4],[96,5,96,9],[91,1,91,6],[91,8,91,9],[92,8,92,9],[88,1,88,6],[88,8,88,9],[89,1,89,6],[89,8,89,9],[90,1,90,6],[90,8,90,9],[86,8,86,9],[86,1,86,6],[85,0,85,9]]}
[]
[]
[]
[]
[]
["PLANO DE TRABALHO PARA GESTÃO ADMINISTRATIVA"]
["Orientações de preenchimento: clique aqui"]
[]
["Título do Projeto"]
[]
[]
["Identificação dos Partícipes do Projeto"]
["Universidade Federal de Goiás - CNPJ: 01.567.601/0001-43"]
["Hospital das Clínicas da UFG | EBSERH - CNPJ: 15.126.437/0026-00"]
["Fundação de Apoio ao Hospital das Clínicas da UFG   -  CNPJ: 02.918.347.0001-43"]
["[Opcional: inserir nome da natrocinadora e CNPJ]"]
[]
["Coordenador(a)",null,null,null,null,null,null,"SIAPE"]
[]
[]
["Email",null,null,null,null,null,null,"Telefone"]
[null,null,null,null,null,null,null,62888888888]
[]
["Classificação do Projeto"]
[]
[]
[]
["Justificativa"]
[]
[]
["I – DESCRIÇÃO DO PROJETO"]
[]
["I.a Objetivo"]
[]
[]
["I.b Número Registro do Projeto ",null,null,null,null,null,"I.c  Início",null,"Término"]
[null,null,null,null,null,null,"(data da assinatura)"]
[]
["I.d. Resultados Esperados"]
[]
[]
["I.e. Cronograma de Execução"]
["Etapa","Descrição",null,"Meta",null,null,"Indicador ",null,"Início","Fim"]
[]
[]
[]
[]
[]
[]
[]
["1.f Detalhamento de acompanhamento e da mensuração dos indicadores"]
[]
[]
["II – RECURSOS FINANCEIROS E APLICAÇÃO"]
[]
["Valor Total do Plano (R$):",null,null,3000]
[]
["II.a Detalhamento da Receita"]
[]
[]
["II.b. Cronograma estimado de recebimento dos recursos da patrocinadora"]
["Parcela",null,null,null,"Data",null,null,"Valor (R$)"]
[]
[]
[]
["II.c. Plano de Aplicação dos Recursos Financeiros (preencher abas)",null,null,null,null,null,null,null,"R$"]
["1- Receita (Valor total do Plano)",null,null,null,null,null,null,null,{"$f":"D56","v":3000}]
["2- Previsão de Despesas (a+b+c+d+e+f+g)",null,null,null,null,null,null,null,{"$f":"SUM(I69+I74+I75+I76+I77+I78+I79+I83)","v":2194.5}]
[null,"a – Quadro de Pessoal ",null,null,null,null,null,null,{"$f":"SUM(I70:J73)","v":1800}]
[null,null,"Bolsistas UFG e outras IES",null,null,null,null,null,{"$f":"'I Quadro Pessoal'!K15","v":1200}]
[null,null,"Outros bolsistas",null,null,null,null,null,{"$f":"'I Quadro Pessoal'!K23","v":600}]
[null,null,"Salários  (CLT + Encargos)",null,null,null,null,null,{"$f":"'I Quadro Pessoal'!K31","v":0}]
[null,null,"Outros Participantes – Pessoa Jurídica / MEI",null,null,null,null,null,{"$f":"'I Quadro Pessoal'!K41","v":0}]
[null,"b – Serviços de Terceiros P. Jurídica                                                                          ",null,null,null,null,null,null,{"$f":"'II Contratos e Aquisicoes'!D9","v":0}]
[null,"c – Passagens e Despesas com Locomoção ",null,null,null,null,null,null,{"$f":"'II Contratos e Aquisicoes'!D22","v":0}]
[null,"d – Diárias  ",null,null,null,null,null,null,{"$f":"'II Contratos e Aquisicoes'!D30","v":0}]
[null,"e – Material de Consumo  ",null,null,null,null,null,null,{"$f":"'II Contratos e Aquisicoes'!D38","v":0}]
[null,"f – Equipamentos, bens móveis, obras e reformas ",null,null,null,null,null,null,{"$f":"'II Contratos e Aquisicoes'!D50","v":0}]
[null,"g - IId. Valor dos Custos Indiretos do Projeto (CIP) para a UFG",null,null,null,null,null,null,{"$f":"SUM(I80:J82)","v":394.5}]
[null,null,"Ressarcimento à UFG (5%)",null,null,null,null,null,{"$f":"D56*0.05","v":150}]
[null,null,"Ressarcimento ao HC-UFG|EBSERH (5%)",null,null,null,null,null,{"$f":"D56*0.05","v":150}]
[null,null,"Despesas administrativas e operacionais da Fundahc (3,5%)",null,null,null,null,null,{"$f":"(D56-I80-I81)*0.035","v":94.500000000000014}]
[null,"h – Ganho econômico "]
[null,"(Não havendo previsão de ganho econômico este será apurado ao final da execução do projeto)"]
[]
["II.d Detalhamento e Justificativa do Investimento da aquisição de Equipamentos, bens móveis e obras"]
["Quant.","Descrição (Equipamentos/Móveis/Obras/Reformas)                   com respectiva justificativa",null,null,null,null,null,"Data Prev.  Aquisição","R$"]
[]
[]
[]
[]
[]
[null,null,null,null,null,null,null,"Total",{"$f":"SUM(H88:H92)","v":0}]
[]
["II.e. Descrição dos Recursos do HC-UFG|EBSERH (Salas, Equipamentos, Laboratórios, etc.)"]
["Quant.","Descrição",null,null,null,"Justificativa"]
[]
[]
[]
[]
[]
["III - ASSINATURA DOS PARTÍCIPES"]
[]
[null,null,null,"Goiânia, XX de XXXXXX de 20XX."]
[]
[]
[]
[null,null,null,"Universidade Federal d Goiás"]
[null,null,null,"CNPJ: 01.567.601/0001-43"]
[]
[]
[]
[null,null,null,"Hospital das Clínicas da UFG | EBSERH "]
[null,null,null,"CNPJ: 15.126.437/0026-00"]
[]
[]
[]
[null,null,null,"Fundação de Apoio ao Hospital das Clínicas da UFG   "]
[null,null,null,"CNPJ: 02.918.347.0001-43"]
[]
[]
[]
[null,null,null,"Coordenador do Projeto"]
[null,null,null,"CPF: "]
[]
[]
[]
[]
["Preenchimento pela FUNDAHC após aprovação"]
[]
["II.e. Despesas Administrativas e Operacionais da Fundação"]
["Para execução deste projeto a Fundação.......................... aplicará a título de Despesas Administrativas e Operacionais de caráter indivisível (DAO) decorrentes de serviços de gestão administrativa e financeira o valor de R$ .................... (.............................................), conforme detalhado no anexo 1."]
[]
[]
["Centro de Custo",null,"Banco",null,"Agência","CC"]
[]
[]
[]
[]
["Assinatura Gerência de Projetos FundaHC"]

{"sheet":"Plan2","index":4,"n_rows":16,"n_cols":1,"rows_kept":16,"cut":false,"hidden":true,"merged":[]}
["Ens.-Licenciatura "]
["Ens.-PET"]
["Ens.-Mestrado"]
["Ens.-Doutorado"]
["Ens.-Tutoria em EaD"]
["Ens.-Docência em EaD"]
["Ens.-Apoio ao Ensino"]
["Pesq. Inov.-Inic. à Pesquisa"]
["Pesq. Inov.-Pós-Doutorado"]
["Pesq. Inov.-Pesquisa"]
["Pesq. Inov.-Des. Tec. Inov."]
["Pesq. Inov.-Prof. ou Pesq. Vis."]
["Ext. Cult.-Iniciação Ext. Cult."]
["Ext. Cult.-Extensão e Cultura"]
["Des. Inst.-Iniciação Des. Inst."]
["Des. Inst.-Des. Inst."]